Cogmind - Beta 16 @@@ ROGUE MODE // 2026.01.12 @ 19:07:56 Player: PE-P51 Result: Self-destructed Performance ------------- Evolutions (3) 1500 Regions Visited (10) 2000 Robots Destroyed (42) 210 Value Destroyed (1109) 1109 Prototype IDs (26) 520 Alien Tech Used (0) 0 Bonus (32) 32 TOTAL SCORE: 5371 Bonus ------- Follower Combat Kills 49 Friendly Fire -17 Cogmind --------- Core Integrity 313/700 Matter 230/300 Energy 9/100 System Corruption 9% Temperature Cool (0) Movement Core (150) Ox2 Location -7/Factory Parts ------- > --- POWER (1) -------- (None) > --- PROPULSION (8) --- (None) > --- UTILITY (2) ------ Improved Signal Interpreter > --- WEAPON (2) ------- Cooled Particle Cannon > --- INVENTORY (5) ---- Experimental Optical Array Skeleton Box Peak State ------------ > --- POWER ------------ Improved Deuterium Engine > --- PROPULSION ------- Light Treads Light Treads Compact Wheel Compact Wheel Compact Wheel Compact Wheel Compact Wheel Compact Wheel > --- UTILITY ---------- Improved Signal Interpreter Improved Medium Armor Plating > --- WEAPON ----------- Cooled Particle Cannon Cooled Particle Cannon > --- INVENTORY -------- Improved Deuterium Engine Skeleton Box Supersonic Drone Bay YOLO Cannon [Rating: 32] Favorites ----------- Power Improved Deuterium Engine Engine Improved Deuterium Engine Power Core Light Nuclear Core Propulsion Compact Wheel Treads Light Treads Leg Aluminum Leg Wheel Compact Wheel Hover Unit Airjet Flight Unit Flight Unit Utility Improved Signal Interpreter Device Shock Absorption System Storage Small Storage Unit Processor Improved Signal Interpreter Hackware Hacking Suite Protection Improved Medium Armor Plating Weapon Cooled Particle Cannon Energy Cannon Cooled Particle Cannon Ballistic Gun Assault Rifle Ballistic Cannon Advanced Assault Cannon Slashing Weapon Greatsword Build | -11 -10 -10 -9 -9 -9 -8 -8 -7 -7 -7 ------- Run | Yrd Mat Min Mat Min Exi Min Mat Fac Was Fac Slots Evolved 6 | . . . 2 . . . 2 2 . . Power . | . . . . . . . . . . . Propulsion 6 | . . . 2 . . . 2 2 . . Utility . | . . . . . . . . . . . Weapon . | . . . . . . . . . . . Parts Attached 57 | . 4 2 5 2 . . 8 1 1 34 Power 7 | . 1 . . 1 . . 2 . . 3 Engine 4 | . . . . 1 . . 1 . . 2 Core 3 | . 1 . . . . . 1 . . 1 Reactor . | . . . . . . . . . . . Propulsion 27 | . 3 1 5 1 . . 5 . . 12 Treads 2 | . . . . . . . . . . 2 Leg 5 | . 3 1 1 . . . . . . . Wheel 6 | . . . . . . . . . . 6 Hover 1 | . . . . . . . 1 . . . Flight 13 | . . . 4 1 . . 4 . . 4 Utility 14 | . . . . . . . . 1 1 12 Device 4 | . . . . . . . . . 1 3 Storage . | . . . . . . . . . . . Processor 5 | . . . . . . . . 1 . 4 Hackware 2 | . . . . . . . . . . 2 Protection 3 | . . . . . . . . . . 3 Artifact . | . . . . . . . . . . . Weapon 9 | . . 1 . . . . 1 . . 7 Energy Gun . | . . . . . . . . . . . Energy Cannon 4 | . . . . . . . 1 . . 3 Ballistic Gun 3 | . . 1 . . . . . . . 2 Ballistic Cannon 1 | . . . . . . . . . . 1 Launcher . | . . . . . . . . . . . Special Weapon . | . . . . . . . . . . . Impact Weapon . | . . . . . . . . . . . Slashing Weapon 1 | . . . . . . . . . . 1 Piercing Weapon . | . . . . . . . . . . . Special Melee Weapon . | . . . . . . . . . . . Unidentified Prototypes 2 | . . . . . . . . . . 2 Parts Lost 27 | . . 1 1 5 . . 7 1 2 10 Power 3 | . . . 1 1 . . . . . 1 Propulsion 17 | . . . . 2 . . 7 1 . 7 Utility 4 | . . . . . . . . . 2 2 Weapon 3 | . . 1 . 2 . . . . . . Highest Loss Streak 7 | . . 1 1 5 . . 7 1 2 3 To Critical Strikes . | . . . . . . . . . . . Average Backups 4 | . 6 7 5 5 4 4 3 4 4 3 Power . | . 1 1 1 . . . . 1 1 . Propulsion 1 | . 4 6 4 5 2 1 . . . . Utility . | . . . . . . 1 1 1 1 . Weapon . | . 1 . . . . 1 . 1 1 1 Tool/Special . | . . . . . . . . . . . Unused Backups 15 | . 4 1 1 1 4 . . . . 4 Power 2 | . 1 . . . . . . . . 1 Propulsion 5 | . . . 1 . 4 . . . . . Utility 2 | . 1 . . . . . . . . 1 Weapon 5 | . 2 1 . 1 . . . . . 1 Tool/Special 1 | . . . . . . . . . . 1 Average Slot Usage (%) 55 | . 85 85 83 44 33 33 24 17 15 55 Engine 4 | . 8 . . 2 . . 2 7 5 5 Core 2 | . 6 14 9 . . . 3 . . . Treads 4 | . . . . . . . . . . 7 Leg 5 | . 28 28 22 . . . . . . . Wheel 7 | . . . . . . . . . . 13 Flight 7 | . . . 18 34 33 33 16 . . 4 Storage 2 | . 14 14 11 2 . . . . . . Processor 3 | . . . . . . . . 4 5 6 Hackware 1 | . . . . . . . . . . 3 Protection 1 | . . . . . . . . . . 2 Energy Cannon 4 | . . . . . . . . . . 8 Ballistic Gun 5 | . 28 28 22 4 . . . . . . Peak Build Rating 32 | . 8 11 13 8 6 6 25 10 13 32 Average Rating 17 | . 6 8 11 3 4 6 8 8 9 23 On Entrance 6 | 6 6 8 11 7 3 6 6 7 7 3 Avg Prop Armor Cover (%) 14 | . . . . . . . . . . 14 Naked Turns 119 | . . . . . . . 7 . 17 95 Heaviest Build 32 | 14 14 14 13 13 . . 7 5 8 32 Greatest Support 96 | 20 20 30 50 16 12 12 16 8 3 96 Greatest Overweight (x) 9 | . . . . . . . . 1 2 9 Average Overweight (x) . | . . . . . . . . . . . Largest Inventory Capacity 8 | . 8 8 8 8 5 5 5 5 5 5 Average Capacity 5 | . 8 8 8 5 5 5 5 5 5 5 Most Carried 8 | . 8 8 8 5 5 5 5 5 5 5 Average Carried 5 | . 6 7 5 5 4 5 4 5 5 4 Final Capacity 8 | 8 8 8 8 5 5 5 5 5 5 5 Final Carried 8 | 6 8 8 6 5 5 5 5 5 5 2 Class Distribution -------------------- 72% | Mutant 13% | Scavenger-Mutant 9% | Scavenger-Sprinter 3% | Hacker-Mutant Dominant Class ---------------- Mutant | -10/Materials Mutant | -10/Mines Scavenger-Mutant | -9/Materials Mutant | -9/Mines Mutant | -9/Exiles Mutant | -8/Mines Mutant | -8/Materials Mutant | -7/Factory Mutant | -7/Waste Mutant | -7/Factory Resources | -11 -10 -10 -9 -9 -9 -8 -8 -7 -7 -7 ----------- Run | Yrd Mat Min Mat Min Exi Min Mat Fac Was Fac Matter Collected 1044 | 200 132 57 76 10 . . . . . 569 Remotely . | . . . . . . . . . . . Salvage Created 1409 | . 143 186 26 . . . 23 . . 1031 Parts 79 | . 11 3 5 . . . 6 . . 54 Haulers Intercepted 1 | . . . . . . . . . . 1 Recyclers Shooed 4 | . . . 1 . . . . . . 3 Parts Field Recycled . | . . . . . . . . . . . Retrieved Matter . | . . . . . . . . . . . Parts Self-Destructed . | . . . . . . . . . . . Prevented . | . . . . . . . . . . . Parts Restored . | . . . . . . . . . . . Kills | -11 -10 -10 -9 -9 -9 -8 -8 -7 -7 -7 ------- Run | Yrd Mat Min Mat Min Exi Min Mat Fac Was Fac Combat Hostiles Destroyed 28 | . 3 1 2 . . . 4 . . 18 Melee 4 | . . . . . . . . . . 4 Guns 6 | . 3 1 2 . . . . . . . Cannons 14 | . . . . . . . 2 . . 12 AOE 4 | . . . . . . . 2 . . 2 Classes Destroyed 10 | . 1 1 1 . . . . . . 7 Worker 1 | . . . . . . . . . . 1 Builder 3 | . . . . . . . . . . 3 Hauler 1 | . . . . . . . . . . 1 Recycler 7 | . . 2 . . . . . . . 5 Operator 1 | . . . . . . . . . . 1 Watcher 1 | . . . . . . . . . . 1 Swarmer 14 | . . . 2 . . . 4 . . 8 Grunt 9 | . 3 1 . . . . . . . 5 Sentry 2 | . . . . . . . . . . 2 Programmer 3 | . . . . . . . . . . 3 Best Kill Streak 6 | . 2 3 2 . . . 4 . . 6 Combat Bots Only 4 | . 2 1 2 . . . 4 . . 4 Max Kills in Single Turn 4 | . 1 1 2 . . . 3 . . 4 Gunslinging 1 | . . . 1 . . . . . . . Exploded 2 | . . . . . . . 2 . . 2 Melee 1 | . . . . . . . . . . 1 Uniques/NPCs Destroyed . | . . . . . . . . . . . Combat | -11 -10 -10 -9 -9 -9 -8 -8 -7 -7 -7 -------- Run | Yrd Mat Min Mat Min Exi Min Mat Fac Was Fac Hostile Shots Fired 408 | . 37 10 31 37 . . 67 15 3 208 Missed 154 | . 9 4 12 17 . . 29 9 1 73 Hits 254 | . 28 6 19 20 . . 38 6 2 135 Melee 5 | . . . . 3 . . . . 2 . Projectile 249 | . 28 6 19 17 . . 38 6 . 135 Critical Strikes 10 | . . . . . . . . . 1 9 Damage Taken 3640 | . 353 68 174 322 . . 471 55 68 2129 Core 1465 | . 54 11 6 137 . . 257 39 68 893 Absorbed by Shields . | . . . . . . . . . . . Core Remaining (%) 72 | 100 . 74 . . . 64 53 . . . Volleys Fired 86 | . 17 8 7 . . . 2 . . 52 Largest 2 | . 2 2 2 . . . 1 . . 2 Hottest 180 | . 40 40 40 . . . 100 . . 180 Shots Fired 132 | . 34 16 14 . . . 2 . . 66 Gun 64 | . 34 16 14 . . . . . . . Cannon 68 | . . . . . . . 2 . . 66 Launcher . | . . . . . . . . . . . Special . | . . . . . . . . . . . Kinetic 83 | . 34 16 14 . . . . . . 19 Thermal 49 | . . . . . . . 2 . . 47 Explosive . | . . . . . . . . . . . Electromagnetic . | . . . . . . . . . . . Robot Hit Streak 14 | . 6 6 4 . . . 3 . . 14 Robot Miss Streak 8 | . 3 2 8 . . . . . . 2 Penetration Max . | . . . . . . . . . . . Secondary Targets 1 | . . . 1 . . . . . . . Max Gunslinging Chain 1 | . . . 1 . . . . . . . Shots Hit Robots 96 | . 21 10 5 . . . 2 . . 58 Core Hits 47 | . 8 6 2 . . . 2 . . 29 Critical Kills . | . . . . . . . . . . . Critical Parts Destroyed . | . . . . . . . . . . . Critical Strikes . | . . . . . . . . . . . Melee Attacks 18 | . . . . . . . . . . 18 Impact . | . . . . . . . . . . . Slashing 18 | . . . . . . . . . . 18 Piercing . | . . . . . . . . . . . Sneak Attacks 3 | . . . . . . . . . . 3 Combat Hostiles . | . . . . . . . . . . . Follow-up Attacks . | . . . . . . . . . . . Damage Inflicted 4186 | . 327 122 53 . . . 492 10 . 3182 Guns 493 | . 327 113 53 . . . . . . . Cannons 1963 | . . . . . . . 271 . . 1692 Explosions 914 | . . . . . . . 221 . . 693 Melee 797 | . . . . . . . . . . 797 Ramming 19 | . . 9 . . . . . 10 . . Kinetic 913 | . 327 113 53 . . . . . . 420 Thermal 2457 | . . . . . . . 492 . . 1965 Explosive . | . . . . . . . . . . . Electromagnetic . | . . . . . . . . . . . Impact . | . . . . . . . . . . . Slashing 797 | . . . . . . . . . . 797 Piercing . | . . . . . . . . . . . Highest Corruption 9 | . . . . . . . . . 5 9 Average Corruption 5 | . . . . . . . . . 5 5 Corruption Purged . | . . . . . . . . . . . Corruption Blocked . | . . . . . . . . . . . Effects 43 | . . . . . . . . . 1 42 Message Errors 10 | . . . . . . . . . 1 9 Matter Fused 11 | . . . . . . . . . . 11 Heat Flow Errors 5 | . . . . . . . . . . 5 Energy Discharges 6 | . . . . . . . . . . 6 Parts Rejected 2 | . . . . . . . . . . 2 Data Loss (minor) 6 | . . . . . . . . . . 6 Data Loss (major) 2 | . . . . . . . . . . 2 Misfires 1 | . . . . . . . . . . 1 Overload Shots 6 | . . . . . . . . . . 6 Overflow Damage 618 | . . . . . . . 210 . . 408 Projectiles 401 | . . . . . . . 187 . . 214 Explosions 94 | . . . . . . . 23 . . 71 Melee 123 | . . . . . . . . . . 123 Knockbacks 5 | . . . . . . . . . . 5 Impact . | . . . . . . . . . . . Kinetic 5 | . . . . . . . . . . 5 Secondary . | . . . . . . . . . . . Self-Inflicted Damage 49 | . . . . . . . . 5 . 44 Shots 1 | . . . . . . . . . . 1 Rammed 1 | . . . . . . . . 1 . . Targets Rammed 3 | . . 2 . . . . . 1 . . Kicked 2 | . . 2 . . . . . . . . Crushed . | . . . . . . . . . . . Highest Temperature 342 | . 10 10 5 30 . . 16 . . 342 Average Temperature 53 | . 3 5 2 17 . . 9 . . 88 Received Heat Transfer 795 | . 207 39 18 60 . . 108 12 . 351 Effects 1 | . . . . . . . . . . 1 Shutdowns 1 | . . . . . . . . . . 1 Siege Activations . | . . . . . . . . . . . Martial Activations . | . . . . . . . . . . . Shielding Activations . | . . . . . . . . . . . Robots Disrupted . | . . . . . . . . . . . Combat Hostiles . | . . . . . . . . . . . Robots Corrupted . | . . . . . . . . . . . Combat Hostiles . | . . . . . . . . . . . Parts Fried . | . . . . . . . . . . . Impact Corruptions . | . . . . . . . . . . . Robots Melted . | . . . . . . . . . . . Combat Hostiles . | . . . . . . . . . . . Parts Melted 5 | . . . . . . . 1 . . 4 Heat Transferred 2694 | . . . . . . . 480 . . 2214 Parts Sabotaged . | . . . . . . . . . . . Parts Stolen . | . . . . . . . . . . . Parts Stripped . | . . . . . . . . . . . Power Chain Reactions . | . . . . . . . . . . . Alert | -11 -10 -10 -9 -9 -9 -8 -8 -7 -7 -7 ------- Run | Yrd Mat Min Mat Min Exi Min Mat Fac Was Fac Maximum Alert Level 1 | . . . . . . . . . . 1 Low Security (%) 94 | . 100 100 100 100 . 100 100 100 100 91 Level 1 5 | . . . . . . . . . . 8 Level 2 . | . . . . . . . . . . . Level 3 . | . . . . . . . . . . . Level 4 . | . . . . . . . . . . . Level 5 . | . . . . . . . . . . . High Security . | . . . . . . . . . . . Max Security . | . . . . . . . . . . . Peak Influence 293 | . 50 55 95 8 . . 120 42 . 293 Initial 42 | . . 15 13 8 . . . 42 . . Average 50 | . 22 17 35 1 . . 57 19 . 66 Influence Increases 1179 | . 80 65 103 . . . 165 . . 766 Destroy 0b10 Robot/C 620 | . 60 40 80 . . . 80 . . 360 Destroy 0b10 Robot/NC 70 | . . 10 . . . . . . . 60 Destroy Leader 134 | . 20 10 10 . . . 10 . . 84 Allied During Kill 10 | . . 5 5 . . . . . . . Successful Hack 32 | . . . 8 . . . . . . 24 Disable Machine 90 | . . . . . . . 15 . . 75 Destroy Structure 88 | . . . . . . . 15 . . 73 Lose Combat Pursuer 135 | . . . . . . . 45 . . 90 Influence Decreases 905 | . 40 70 115 23 . . 70 95 . 492 Entered New Map 115 | . . 25 22 15 . . . 53 . . Time Decay 602 | . 40 45 63 . . . 30 32 . 392 Lost Part 158 | . . . 10 8 . . 40 10 . 90 Lost Ally 30 | . . . 20 . . . . . . 10 Squads Dispatched 9 | . 2 . 1 . . . 1 . . 5 Investigation 2 | . 1 . 1 . . . . . . . Extermination 3 | . . . . . . . . . . 3 Reinforcement 4 | . 1 . . . . . 1 . . 2 Assault . | . . . . . . . . . . . Garrison . | . . . . . . . . . . . Intercept . | . . . . . . . . . . . Searches Triggered . | . . . . . . . . . . . Construction Impeded . | . . . . . . . . . . . Haulers Reinforced . | . . . . . . . . . . . Active Scanning Responses . | . . . . . . . . . . . Cargo Convoy Interrupts 1 | . . . . . . . . . . 1 Stealth | -11 -10 -10 -9 -9 -9 -8 -8 -7 -7 -7 --------- Run | Yrd Mat Min Mat Min Exi Min Mat Fac Was Fac Distress Signals 3 | . . . 1 . . . 1 . . 1 Communications Jammed . | . . . . . . . . . . . Distress Signals . | . . . . . . . . . . . Times Spotted 110 | . 5 2 9 20 . . 22 2 5 45 Peak Tracking Total 20 | . 3 2 5 20 . . 18 2 5 12 Tactical Retreats 4 | . . . . 1 . . 1 . . 2 Traps | -11 -10 -10 -9 -9 -9 -8 -8 -7 -7 -7 ------- Run | Yrd Mat Min Mat Min Exi Min Mat Fac Was Fac Traps Triggered 7 | . 1 . 1 . . . . 1 . 4 Indirectly . | . . . . . . . . . . . Trap Hack Attempts . | . . . . . . . . . . . Triggered . | . . . . . . . . . . . Disarmed . | . . . . . . . . . . . Reprogrammed . | . . . . . . . . . . . Reused . | . . . . . . . . . . . Traps Extracted . | . . . . . . . . . . . Installed . | . . . . . . . . . . . Triggered . | . . . . . . . . . . . Machines | -11 -10 -10 -9 -9 -9 -8 -8 -7 -7 -7 ---------- Run | Yrd Mat Min Mat Min Exi Min Mat Fac Was Fac Machines Disabled 6 | . . . . . . . 1 . . 5 Max in Single Turn 1 | . . . . . . . 1 . . 1 Machines Repaired . | . . . . . . . . . . . Machines Dismantled . | . . . . . . . . . . . Machines Sabotaged . | . . . . . . . . . . . Overloaded Fab Kills . | . . . . . . . . . . . Hacking | -11 -10 -10 -9 -9 -9 -8 -8 -7 -7 -7 --------- Run | Yrd Mat Min Mat Min Exi Min Mat Fac Was Fac Machines Accessed 7 | . . . 2 . 1 . . . . 4 Terminals 5 | . . . 2 . . . . . . 3 Fabricators 1 | . . . . . . . . . . 1 Repair Stations . | . . . . . . . . . . . Recycling Units . | . . . . . . . . . . . Scanalyzers . | . . . . . . . . . . . Garrison Access . | . . . . . . . . . . . Total Hacks 8 | . . . 2 . 1 . . . . 5 Successful 3 | . . . 1 . 1 . . . . 1 Failed 5 | . . . 1 . . . . . . 4 Catastrophic 1 | . . . . . . . . . . 1 Database Lockouts . | . . . . . . . . . . . Manual 7 | . . . 2 . 1 . . . . 4 Terminals 6 | . . . 2 . . . . . . 4 Fabricators 1 | . . . . . . . . . . 1 Repair Stations . | . . . . . . . . . . . Recycling Units . | . . . . . . . . . . . Scanalyzers . | . . . . . . . . . . . Garrison Access . | . . . . . . . . . . . Terminal Hacks 2 | . . . 1 . 1 . . . . . Branch Access Points 1 | . . . 1 . . . . . . . Proto ID Catalog 1 | . . . . . 1 . . . . . Fabricator Hacks 1 | . . . . . . . . . . 1 Build 1 | . . . . . . . . . . 1 Repair Station Hacks . | . . . . . . . . . . . Recycling Unit Hacks . | . . . . . . . . . . . Scanalyzer . | . . . . . . . . . . . Garrison Access Hacks . | . . . . . . . . . . . Unauthorized Hacks . | . . . . . . . . . . . Terminals . | . . . . . . . . . . . Fabricators . | . . . . . . . . . . . Repair Stations . | . . . . . . . . . . . Recycling Units . | . . . . . . . . . . . Scanalyzers . | . . . . . . . . . . . Garrison Access . | . . . . . . . . . . . Data Cores Recovered . | . . . . . . . . . . . Used . | . . . . . . . . . . . Hacking Detections 6 | . . . 2 . . . . . . 4 Full Trace Events . | . . . . . . . . . . . Feedback Events . | . . . . . . . . . . . Feedback Blocked . | . . . . . . . . . . . Robot Schematics Acquired . | . . . . . . . . . . . Robots Built . | . . . . . . . . . . . Authchips . | . . . . . . . . . . . Time . | . . . . . . . . . . . Total Robot Build Rating . | . . . . . . . . . . . Part Schematics Acquired . | . . . . . . . . . . . Parts Built 1 | . . . . . . . . . . 1 Authchips . | . . . . . . . . . . . Time 62 | . . . . . . . . . . 62 Total Part Build Rating 7 | . . . . . . . . . . 7 Part Studies Acquired . | . . . . . . . . . . . Parts Repaired . | . . . . . . . . . . . Time . | . . . . . . . . . . . Parts Recycled . | . . . . . . . . . . . Recycled Matter . | . . . . . . . . . . . Retrieved Matter . | . . . . . . . . . . . Retrieved Components . | . . . . . . . . . . . Parts Scanalyzed . | . . . . . . . . . . . Part Schematics Acquired . | . . . . . . . . . . . Parts Damaged . | . . . . . . . . . . . Bothacking | -11 -10 -10 -9 -9 -9 -8 -8 -7 -7 -7 ------------ Run | Yrd Mat Min Mat Min Exi Min Mat Fac Was Fac Used RIF Installer . | . . . . . . . . . . . Robots Hacked . | . . . . . . . . . . . Non-combat . | . . . . . . . . . . . Combat . | . . . . . . . . . . . Robot Hacks Applied . | . . . . . . . . . . . Relay Couplers Released . | . . . . . . . . . . . Fabnet Peak Effective % . | . . . . . . . . . . . Robots Rewired . | . . . . . . . . . . . Allies Hacked . | . . . . . . . . . . . Hacks Repelled . | . . . . . . . . . . . Allies | -11 -10 -10 -9 -9 -9 -8 -8 -7 -7 -7 -------- Run | Yrd Mat Min Mat Min Exi Min Mat Fac Was Fac Total Allies 6 | . . 2 . 4 . . . . . . Largest Group 4 | . . 2 1 4 . . . . . . Highest-Rated Group 71 | . . 43 31 71 . . . . . . Highest-Rated Ally 31 | . . 31 31 31 . . . . . . Total Orders 1 | . . . . . . . . . . 1 EXPLORE 1 | . . . . . . . . . . 1 Ally Attacks 29 | . . 4 6 19 . . . . . . Total Damage 378 | . . 84 104 190 . . . . . . Kills 7 | . . 2 2 3 . . . . . . Allies Corrupted . | . . . . . . . . . . . Allies Melted . | . . . . . . . . . . . Intel | -11 -10 -10 -9 -9 -9 -8 -8 -7 -7 -7 ------- Run | Yrd Mat Min Mat Min Exi Min Mat Fac Was Fac Active Infowar (turns) 355 | . . . . . . . . . . 355 Optics 354 | . . . . . . . . . . 354 Jamming 1 | . . . . . . . . . . 1 Robot Analysis Total . | . . . . . . . . . . . Derelict Logs Recovered 1 | . . 1 . . . . . . . . Drone Launches 1 | . . . . . . . . . . 1 Drone Recoveries . | . . . . . . . . . . . Exploration | -11 -10 -10 -9 -9 -9 -8 -8 -7 -7 -7 ------------- Run | Yrd Mat Min Mat Min Exi Min Mat Fac Was Fac Turns Passed 2389 | . 138 191 176 74 115 9 110 104 68 1404 Spaces Moved 2673 | 1 68 131 246 203 324 27 222 149 70 1232 Core 448 | . . . . . . . 14 31 70 333 Treads 178 | . . . . . . . . . . 178 Legs 260 | 1 68 131 60 . . . . . . . Wheels 368 | . . . . . . . . . . 368 Hover 169 | . . . . . . . 51 118 . . Flight 1250 | . . . 186 203 324 27 157 . . 353 Fastest Speed 26 | 120 120 120 31 31 34 34 31 60 50 26 Average Speed 70 | 120 120 122 54 33 34 34 40 68 94 85 Slowest Speed 500 | 120 120 130 140 37 34 34 60 100 150 500 Overloaded Moves . | . . . . . . . . . . . Propulsion Burnouts . | . . . . . . . . . . . Robots Hopped 39 | . . . 6 14 . 1 4 . . 14 Potential Cave-ins . | . . . . . . . . . . . Cave-ins Triggered . | . . . . . . . . . . . Exploration Rate (%) 30 | 1 16 44 29 39 60 14 31 6 69 30 Regions Visited 10 Branch Regions 4 Pre-discovered Areas . | . . . . . . . . . . . Known Exits Taken 1 | . . . 1 . . . . . . . Unknown Exits Taken 7 | 1 1 1 . 1 1 1 1 . . . Scrap Searched 3 | . . 1 . 2 . . . . . . Spaces Dug 1 | . . . . . . . . . . 1 Terrain Destroyed 110 | . . . . . . . 14 . . 96 Melee 1 | . . . . . . . . . . 1 Projectile 6 | . . . . . . . . . . 6 AOE 103 | . . . . . . . 14 . . 89 Terrain Rammed . | . . . . . . . . . . . Walls Destroyed . | . . . . . . . . . . . Machines Disabled . | . . . . . . . . . . . Actions | -11 -10 -10 -9 -9 -9 -8 -8 -7 -7 -7 --------- Run | Yrd Mat Min Mat Min Exi Min Mat Fac Was Fac Total 2956 | . 89 146 270 193 330 25 230 151 70 1452 Wait 84 | . . 4 7 2 . . . . . 71 Move 2601 | . 67 130 234 182 323 24 215 149 69 1208 Hop 24 | . . . 5 6 . 1 2 . . 10 Pick Up 7 | . . . 1 . 3 . . . . 3 Fast Attach 43 | . . . 6 1 . . 7 1 1 27 Attach 12 | . . 1 . 1 . . 1 . . 9 Detach 15 | . . . 3 . . . 2 . . 10 Swap 13 | . 4 1 . . . . . . . 8 Drop 35 | . 1 . 7 1 4 . 1 . . 21 Fire 86 | . 17 8 7 . . . 2 . . 52 Melee 18 | . . . . . . . . . . 18 Ram 1 | . . . . . . . . 1 . . Kick 2 | . . 2 . . . . . . . . Crush . | . . . . . . . . . . . Escape Stasis 15 | . . . . . . . . . . 15 Rewire . | . . . . . . . . . . . Trap . | . . . . . . . . . . . Miscellaneous . | . . . . . . . . . . . Route ------- -11/Scrapyard -10/Materials -10/Mines -9/Materials (discovered 2 exits: *Min / *Sto) -9/Mines (discovered 2 exits: [*Mat] / *Exi) -9/Exiles -8/Mines -8/Materials -7/Factory -7/Waste -7/Factory (discovered 1 exit: *Fac) History --------- Turn | Location | Event 1 | -11/Scrapyard | Discovered new exit (range 0) 1 | -11/Scrapyard | Entered Materials 121 | -10/Materials | Discovered new exit (range 16) 139 | -10/Materials | Entered Mines 220 | -10/Mines | Learned Materials interactive machine intel 251 | -10/Mines | Found a Scrap Suit stashed away for nefarious purposes 311 | -10/Mines | Build established: Mutant 313 | -10/Mines | Discovered new exit (range 11) 330 | -10/Mines | Entered Materials 330 | -9/Materials | Accompanied by 1 ally 330 | -9/Materials | Evolved 2 slots: Propulsion x2 331 | -9/Materials | Loaded intel: 18 interactive machine locations 335 | -9/Materials | Led the pair of lost Derelicts to an unsafe place 482 | -9/Materials | Discovered new exit (range 5) 493 | -9/Materials | Identified exit to Mines 493 | -9/Materials | Identified exit to Storage 506 | -9/Materials | Entered Mines 507 | -9/Mines | Assembled infested the area 510 | -9/Mines | Received a Mining Laser from a helpful Derelict 512 | -9/Mines | Assisted by a Guerilla fighting off Assembled 527 | -9/Mines | Assisted by bots powering up and referring to "LRC-V3" 547 | -9/Mines | Discovered new exit (range 9) 549 | -9/Mines | Lost 5 parts (1p2n2w) 573 | -9/Mines | Lost 4 allies 578 | -9/Mines | Deemed a non-threat by the Exiles lab entrance 578 | -9/Mines | Discovered new exit (range 5) 580 | -9/Mines | Entered Exiles 589 | -9/Exiles | Met 8R-AWN 594 | -9/Exiles | Met EX-HEX 604 | -9/Exiles | Met EX-BIN 614 | -9/Exiles | Opened EX-Vault 621 | -9/Exiles | Found Supersonic Drone Bay 622 | -9/Exiles | Found YOLO Cannon 624 | -9/Exiles | Found Skeleton Box 633 | -9/Exiles | Warned to stay clear of 0b10 Research branches 679 | -9/Exiles | Met EX-DEC 692 | -9/Exiles | Discovered new exit (range 12) 695 | -9/Exiles | Stole three prototypes: Skeleton Box, Supersonic Drone Bay, YOLO Cannon 695 | -9/Exiles | Entered Mines 702 | -8/Mines | Discovered new exit (range 4) 704 | -8/Mines | Entered Materials 704 | -8/Materials | Evolved 2 slots: Propulsion x2 805 | -8/Materials | Discovered new exit (range 16) 809 | -8/Materials | Lost 7 parts (7n) 814 | -8/Materials | Entered Factory 814 | -7/Factory | Evolved 2 slots: Propulsion x2 918 | -7/Factory | Sucked down chute 918 | -7/Factory | Entered Waste 933 | -7/Waste | EMP discharged 946 | -7/Waste | Spotted C-40 Crusher 952 | -7/Waste | Spotted C-40 Crusher 954 | -7/Waste | Spotted C-40 Crusher 955 | -7/Waste | Spotted C-40 Crusher 969 | -7/Waste | Crushed by Compactor (1 part destroyed, 1 dropped) 969 | -7/Waste | Crushed by Compactor (1 part destroyed) 971 | -7/Waste | Spotted C-40 Crusher 975 | -7/Waste | Discovered new exit (range 16) 986 | -7/Waste | Entered Factory 1389 | -7/Factory | Core integrity fell below 50% 1999 | -7/Factory | Lost 3 parts (3n) 2034 | -7/Factory | Discovered new exit (range 15) 2047 | -7/Factory | Identified exit to Factory 2116 | -7/Factory | Fabricated Exp. Optical Array? 2250 | -7/Factory | Lost 3 parts (3n) 2371 | -7/Factory | Cargo convoy interrupted 2390 | -7/Factory | Self-destructed Last Messages --------------- 02381_ Penetrated by Slug. 02382_ U-05 Engineer lays Concrete. 02383_ U-05 Engineer builds a Wall. 02383_ Penetrated by Slug. 02383_ Hacking Suite destroyed. 02384_ U-05 Engineer lays Concrete. 02384_ U-05 Engineer builds a Wall. 02384_ U-05 Engineer lays Concrete. 02384_ Dropped YOLO Cannon. 02385_ M-28 Smith repairs U-05 Engineer Welding Torch. 02385_ U-05 Engineer lays Concrete. 02385_ Slug penetrates Wall. 02386_ U-05 Engineer lays Concrete. 02387_ Slug penetrates U-05 Engineer. 02387_ U-05 Engineer builds a Wall. 02388_ U-05 Engineer lays Concrete. 02388_ Penetrated by Slug. 02389_ U-05 Engineer lays Concrete. 02390_ U-05 Engineer builds a Wall. 02390_ Penetrated by Slug. Map ----- +----------------------------------------------------+ | """ #??????# """T""" #??# #??????? | | """ #??????################??##############??????? | | """ #????????????????????????????????????????????? | | """ #????????????????????????????????????????????? | | #????????????????????????????????????????????? | | #????????????????????????????????????????????? | | #????????????????????????????????????????????? | | #????????????????????????????????????????????? | | #########????????????????????????????????????????? | | #????????????????????????????????????????? | | #????????????????????????????????????????? | | !!! #????????????????????????????????????????? | | !!] #????????????????????????????????????????? | | !!] #????????????????????????????????????????? | | #??#????????????#????????????????????????? | | #??# """"????? ]#????????????????????????? | | #??# """ """" #????????????????????????? | | #??# """" #????????????????????????? | | == =##?# """" #????????????????????????? | | == |" ?# """" #????????????????????????? | | %%" ## #????????????????????????? | | % ## ?###??????????????????????? | | """ ##########;;;;###;##+###+##### ????????? | | """ "%% x uupu=! [[[ ???????? | | """ " h x =%[ [ ???????? | | """" m h u[!= ][@ ???????? | | xih ???????? | | w ???????? | | ################ ????????? | | ############???# """"""""" """"""""" ????????? | | # ?#" """"""""" """""""????????????? | | #=""" """ ""???#" """"""""" """""??????????????? | | %# """ """ """??#T """"""""" """????????????????? | | %+%""" """ """ ##" """"""""? """????????????????? | | %# ##" """"??????"??????????????????? | | # ! ##" ??????????????????????????? | | ################ ???????????????????????????? | | #??????????????? ??????????????????????????? | | #?????????????? ??????????????????????????? | | #??????????????? ???????????????????????????? | | #?????????????? ???????????????????????????? | | #??????????????? ???????????????????????????? | | ##???????????????####????????????????????????????? | | ?????????????????????????????????????????????????? | | ?????????????????????????????????????????????????? | | ?????????????????????????????????????????????????? | | ?????????????????????????????????????????????????? | | ?????????????????????????????????????????????????? | | ?????????????????????????????????????????????????? | | ?????????????????????????????????????????????????? | +----------------------------------------------------+ Best States ------------- Heat Dissipation 34 Energy Generation 16 Energy Capacity 290 Matter Stores 300 Matter Capacity 300 Sight Range 20 Terrain Scan Density 210 Armor Coverage 225 Resistance: EX 25 Evasion (%) 64 Recoil Reduction 2 Offensive Hacking 20 Item Schematics ----------------- None Robot Schematics ------------------ None Fabricated ------------ Exp. Optical Array | x1 | -7/Factory | Preloaded Repaired ---------- Nothing Studied --------- None Alien Tech Used ----------------- None Achievements -------------- None Challenges ------------ None Game ------ Seed SpacefoldMediumStreamer Manual? 0 Play Time 00:34:08 Cumulative 305.7 hours Start 2026.01.12 @ 15:43:17 End 2026.01.12 @ 19:07:56 Sessions 1 Manual Loads 0 Difficulty Rogue Special Mode None Game No. 369 Rogue 368 Adventurer 1 Explorer 0 Win Type - Total 3 Types 1/0/0/1/1/0/0/0/0/0 Lore% 76 Gallery% 69 Achievement% 58 Wizard Run 0 Options --------- Layout 0 ASCII 0 Keyboard 0 Movement Numpad Keybinds 0 Fullscreen 2 Font 24/Smallcaps Map View 76x50 Zoom Use 0% Tactical HUD 1 Map Filters NONE Filters NONE Steam 1 RUN: 6fa4a6d8-59a4-4511-949d-e5cc4f0c1b14